[Event "Titled Tuesday Blitz February 21 Early 2023"]
[White "Da Silva Borges, Rodrigo"]
[Black "Derjabin, Ilja"]
[WhiteFideId "2115778"]
[BlackFideId "14104768"]
[WhiteElo "2199"]
[BlackElo "2333"]
[Result "0-1"]
[Round "05"]
[TimeControl "180+2"]
[Date "2023.02.21"]
[WhiteClock "0:00:10"]
[BlackClock "0:00:08"]

1. e4 {[%clk 0:03:00]}  c5 {[%clk 0:02:22]} 2. Nf3 {[%clk 0:02:59]}  d6 {[%clk 0:02:21]} 3. d4 {[%clk 0:02:59]}  cxd4 {[%clk 0:02:21]} 4. Nxd4 {[%clk 0:02:59]}  Nf6 {[%clk 0:02:21]} 5. Nc3 {[%clk 0:03:00]}  a6 {[%clk 0:02:22]} 6. Be3 {[%clk 0:03:00]}  e5 {[%clk 0:02:22]} 7. Nb3 {[%clk 0:03:00]}  Be7 {[%clk 0:02:23]} 8. Qd2 {[%clk 0:03:00]}  Be6 {[%clk 0:02:23]} 9. O-O-O {[%clk 0:03:00]}  O-O {[%clk 0:02:23]} 10. f4 {[%clk 0:03:00]}  Ng4 {[%clk 0:02:21]} 11. g3 {[%clk 0:03:00]}  Nxe3 {[%clk 0:02:19]} 12. Qxe3 {[%clk 0:03:01]}  Nc6 {[%clk 0:02:14]} 13. Kb1 {[%clk 0:03:00]}  Rc8 {[%clk 0:02:08]} 14. f5 {[%clk 0:02:52]}  Bg5 {[%clk 0:02:07]} 15. Qf2 {[%clk 0:02:48]}  Bxb3 {[%clk 0:02:04]} 16. axb3 {[%clk 0:02:48]}  Nd4 {[%clk 0:02:05]} 17. Bd3 {[%clk 0:02:36]}  Qa5 {[%clk 0:01:35]} 18. h4 {[%clk 0:02:35]}  Bd8 {[%clk 0:01:32]} 19. Nd5 {[%clk 0:02:35]}  Nc6 {[%clk 0:01:14]} 20. b4 {[%clk 0:02:11]}  Nxb4 {[%clk 0:01:11]} 21. Nxb4 {[%clk 0:02:06]}  Qxb4 {[%clk 0:01:11]} 22. Qd2 {[%clk 0:02:01]}  Qa4 {[%clk 0:01:07]} 23. b3 {[%clk 0:02:00]}  Qa3 {[%clk 0:01:05]} 24. Bc4 {[%clk 0:01:52]}  Ba5 {[%clk 0:00:58]} 25. Qxd6 {[%clk 0:01:46]}  Bb4 {[%clk 0:00:58]} 26. Qxe5 {[%clk 0:01:46]}  b5 {[%clk 0:00:53]} 27. Bxf7+ {[%clk 0:00:43]}  Rxf7 {[%clk 0:00:51]} 28. Qe6 {[%clk 0:00:43]}  Rf8 {[%clk 0:00:46]} 29. Rd3 {[%clk 0:00:43]}  Kh8 {[%clk 0:00:33]} 30. h5 {[%clk 0:00:32]}  Re7 {[%clk 0:00:32]} 31. Qd5 {[%clk 0:00:25]}  h6 {[%clk 0:00:23]} 32. g4 {[%clk 0:00:24]}  Qa5 {[%clk 0:00:17]} 33. Qd4 {[%clk 0:00:19]}  Rc7 {[%clk 0:00:13]} 34. Rhh3 {[%clk 0:00:17]}  Be7 {[%clk 0:00:11]} 35. e5 {[%clk 0:00:16]}  Bg5 {[%clk 0:00:11]} 36. Qd6 {[%clk 0:00:12]}  Rfc8 {[%clk 0:00:09]} 37. f6 {[%clk 0:00:06]}  Qe1+ {[%clk 0:00:09]} 38. Rd1 {[%clk 0:00:04]}  Qe4 {[%clk 0:00:07]} 39. fxg7+ {[%clk 0:00:05]}  Kxg7 {[%clk 0:00:06]} 40. Qg6+ {[%clk 0:00:05]}  Qxg6 {[%clk 0:00:06]} 41. hxg6 {[%clk 0:00:05]}  Kxg6 {[%clk 0:00:07]} 42. c3 {[%clk 0:00:05]}  Rxc3 {[%clk 0:00:06]} 43. Rxc3 {[%clk 0:00:05]}  Rxc3 {[%clk 0:00:06]} 44. Rd6+ {[%clk 0:00:06]}  Kg7 {[%clk 0:00:06]} 45. Rxa6 {[%clk 0:00:07]}  Re3 {[%clk 0:00:06]} 46. Kc2 {[%clk 0:00:08]}  Rxe5 {[%clk 0:00:06]} 47. Rb6 {[%clk 0:00:08]}  Rd5 {[%clk 0:00:06]} 48. b4 {[%clk 0:00:07]}  Bf6 {[%clk 0:00:06]} 49. Rc6 {[%clk 0:00:06]}  Rg5 {[%clk 0:00:06]} 50. Rc5 {[%clk 0:00:05]}  Rxc5+ {[%clk 0:00:06]} 51. bxc5 {[%clk 0:00:06]}  Be5 {[%clk 0:00:06]} 52. Kb3 {[%clk 0:00:07]}  Kg6 {[%clk 0:00:07]} 53. Kb4 {[%clk 0:00:07]}  Kg5 {[%clk 0:00:07]} 54. Kxb5 {[%clk 0:00:08]}  Kxg4 {[%clk 0:00:08]} 55. Kc4 {[%clk 0:00:09]}  h5 {[%clk 0:00:08]} 56. Kd3 {[%clk 0:00:09]}  Kg3 {[%clk 0:00:08]} 57. Ke2 {[%clk 0:00:10]}  Kg2 {[%clk 0:00:08]} 0-1


[Site "https://www.chess.com"]

[Event "Titled Tuesday Blitz February 21 Early 2023"]
[White "Yeritsyan, Hayk"]
[Black "Levitan, Caleb Levi"]
[WhiteFideId "13307320"]
[BlackFideId "14332620"]
[WhiteElo "2241"]
[BlackElo "2129"]
[Result "1/2-1/2"]
[Round "05"]
[TimeControl "180+2"]
[Date "2023.02.21"]
[WhiteClock "0:00:11"]
[BlackClock "0:00:03"]

1. d4 {[%clk 0:02:52]}  Nf6 {[%clk 0:02:58]} 2. Nf3 {[%clk 0:02:52]}  d5 {[%clk 0:02:50]} 3. e3 {[%clk 0:02:52]}  e6 {[%clk 0:02:43]} 4. Bd3 {[%clk 0:02:52]}  c5 {[%clk 0:02:43]} 5. c3 {[%clk 0:02:52]}  Nc6 {[%clk 0:02:42]} 6. Nbd2 {[%clk 0:02:51]}  Be7 {[%clk 0:02:41]} 7. Qe2 {[%clk 0:02:50]}  O-O {[%clk 0:02:39]} 8. O-O {[%clk 0:02:50]}  b6 {[%clk 0:02:34]} 9. dxc5 {[%clk 0:02:46]}  bxc5 {[%clk 0:02:32]} 10. e4 {[%clk 0:02:47]}  Bb7 {[%clk 0:02:26]} 11. Re1 {[%clk 0:02:20]}  Re8 {[%clk 0:02:16]} 12. e5 {[%clk 0:02:13]}  Nd7 {[%clk 0:02:14]} 13. Nf1 {[%clk 0:02:14]}  f6 {[%clk 0:02:05]} 14. exf6 {[%clk 0:01:49]}  Bxf6 {[%clk 0:02:04]} 15. Bc2 {[%clk 0:01:10]}  e5 {[%clk 0:01:59]} 16. Ng3 {[%clk 0:01:00]}  e4 {[%clk 0:01:55]} 17. Nd2 {[%clk 0:00:58]}  Nde5 {[%clk 0:01:44]} 18. Ndf1 {[%clk 0:00:35]}  a5 {[%clk 0:01:21]} 19. Bb3 {[%clk 0:00:28]}  Nd3 {[%clk 0:01:09]} 20. Rd1 {[%clk 0:00:19]}  a4 {[%clk 0:01:01]} 21. Bc2 {[%clk 0:00:15]}  Nce5 {[%clk 0:00:54]} 22. Ne3 {[%clk 0:00:14]}  Ba6 {[%clk 0:00:37]} 23. Ng4 {[%clk 0:00:11]}  Nxc1 {[%clk 0:00:33]} 24. Nxf6+ {[%clk 0:00:10]}  Qxf6 {[%clk 0:00:32]} 25. Qe1 {[%clk 0:00:07]}  Ncd3 {[%clk 0:00:31]} 26. Bxd3 {[%clk 0:00:06]}  Nxd3 {[%clk 0:00:31]} 27. Qd2 {[%clk 0:00:06]}  Rf8 {[%clk 0:00:27]} 28. Rf1 {[%clk 0:00:05]}  Rae8 {[%clk 0:00:23]} 29. b3 {[%clk 0:00:05]}  Ne5 {[%clk 0:00:17]} 30. Qxd5+ {[%clk 0:00:04]}  Kh8 {[%clk 0:00:16]} 31. Nxe4 {[%clk 0:00:04]}  Qf5 {[%clk 0:00:13]} 32. Nd6 {[%clk 0:00:04]}  Rd8 {[%clk 0:00:10]} 33. Qc6 {[%clk 0:00:02]}  Bxf1 {[%clk 0:00:10]} 34. Nxf5 {[%clk 0:00:02]}  Rxf5 {[%clk 0:00:09]} 35. Qe4 {[%clk 0:00:01]}  Rdf8 {[%clk 0:00:10]} 36. Qe3 {[%clk 0:00:01]}  Nf3+ {[%clk 0:00:11]} 37. gxf3 {[%clk 0:00:01]}  Bh3 {[%clk 0:00:10]} 38. f4 {[%clk 0:00:02]}  Rxf4 {[%clk 0:00:10]} 39. Qxh3 {[%clk 0:00:02]}  Rxf2 {[%clk 0:00:10]} 40. Qg3 {[%clk 0:00:03]}  axb3 {[%clk 0:00:10]} 41. axb3 {[%clk 0:00:03]}  R2f6 {[%clk 0:00:10]} 42. b4 {[%clk 0:00:03]}  Rg6 {[%clk 0:00:11]} 43. Rc1 {[%clk 0:00:02]}  Rxg3+ {[%clk 0:00:10]} 44. hxg3 {[%clk 0:00:03]}  Rc8 {[%clk 0:00:11]} 45. b5 {[%clk 0:00:03]}  c4 {[%clk 0:00:10]} 46. Rb1 {[%clk 0:00:03]}  Rb8 {[%clk 0:00:10]} 47. Rb4 {[%clk 0:00:03]}  Kg8 {[%clk 0:00:11]} 48. Kf2 {[%clk 0:00:03]}  Kf7 {[%clk 0:00:11]} 49. Ke3 {[%clk 0:00:04]}  Ke6 {[%clk 0:00:11]} 50. Kd4 {[%clk 0:00:04]}  Kd6 {[%clk 0:00:11]} 51. Kxc4 {[%clk 0:00:05]}  g5 {[%clk 0:00:07]} 52. Kd4 {[%clk 0:00:05]}  h5 {[%clk 0:00:05]} 53. c4 {[%clk 0:00:05]}  Rc8 {[%clk 0:00:05]} 54. Rb1 {[%clk 0:00:03]}  h4 {[%clk 0:00:03]} 55. gxh4 {[%clk 0:00:02]}  gxh4 {[%clk 0:00:04]} 56. Rh1 {[%clk 0:00:02]}  Rh8 {[%clk 0:00:04]} 57. c5+ {[%clk 0:00:03]}  Kc7 {[%clk 0:00:03]} 58. Kc4 {[%clk 0:00:04]}  h3 {[%clk 0:00:04]} 59. Rh2 {[%clk 0:00:05]}  Rh4+ {[%clk 0:00:04]} 60. Kb3 {[%clk 0:00:05]}  Kb7 {[%clk 0:00:03]} 61. Ka3 {[%clk 0:00:05]}  Kc7 {[%clk 0:00:03]} 62. Kb3 {[%clk 0:00:05]}  Kb7 {[%clk 0:00:03]} 63. Kc3 {[%clk 0:00:06]}  Kc7 {[%clk 0:00:03]} 64. Kd3 {[%clk 0:00:06]}  Kd7 {[%clk 0:00:04]} 65. Ke3 {[%clk 0:00:06]}  Ke6 {[%clk 0:00:04]} 66. b6 {[%clk 0:00:06]}  Kd7 {[%clk 0:00:04]} 67. Kf3 {[%clk 0:00:06]}  Kc6 {[%clk 0:00:04]} 68. Kg3 {[%clk 0:00:07]}  Rb4 {[%clk 0:00:03]} 69. Rc2 {[%clk 0:00:06]}  Rb3+ {[%clk 0:00:02]} 70. Kh2 {[%clk 0:00:06]}  Rd3 {[%clk 0:00:02]} 71. Rc1 {[%clk 0:00:06]}  Rb3 {[%clk 0:00:02]} 72. Rc2 {[%clk 0:00:07]}  Rd3 {[%clk 0:00:02]} 73. Kh1 {[%clk 0:00:07]}  Rf3 {[%clk 0:00:02]} 74. Rc4 {[%clk 0:00:07]}  Rb3 {[%clk 0:00:02]} 75. Kh2 {[%clk 0:00:07]}  Rd3 {[%clk 0:00:02]} 76. Rh4 {[%clk 0:00:08]}  Rb3 {[%clk 0:00:01]} 77. Rh5 {[%clk 0:00:08]}  Rb2+ {[%clk 0:00:01]} 78. Kxh3 {[%clk 0:00:08]}  Rb3+ {[%clk 0:00:02]} 79. Kg4 {[%clk 0:00:09]}  Rb5 {[%clk 0:00:03]} 80. Kf4 {[%clk 0:00:08]}  Rb4+ {[%clk 0:00:03]} 81. Kg3 {[%clk 0:00:08]}  Rb5 {[%clk 0:00:03]} 82. Kf2 {[%clk 0:00:09]}  Rb3 {[%clk 0:00:03]} 83. Ke2 {[%clk 0:00:09]}  Ra3 {[%clk 0:00:03]} 84. Kd2 {[%clk 0:00:09]}  Rb3 {[%clk 0:00:03]} 85. Kc2 {[%clk 0:00:09]}  Rf3 {[%clk 0:00:04]} 86. Kb2 {[%clk 0:00:09]}  Rg3 {[%clk 0:00:04]} 87. Rf5 {[%clk 0:00:09]}  Re3 {[%clk 0:00:04]} 88. Kc2 {[%clk 0:00:09]}  Rh3 {[%clk 0:00:03]} 89. Kd2 {[%clk 0:00:09]}  Rb3 {[%clk 0:00:03]} 90. Ke2 {[%clk 0:00:09]}  Rc3 {[%clk 0:00:03]} 91. Kf2 {[%clk 0:00:09]}  Rb3 {[%clk 0:00:03]} 92. Kg2 {[%clk 0:00:09]}  Rc3 {[%clk 0:00:03]} 93. Rf3 {[%clk 0:00:08]}  Rxc5 {[%clk 0:00:03]} 94. Rb3 {[%clk 0:00:08]}  Kb7 {[%clk 0:00:03]} 95. Kf3 {[%clk 0:00:09]}  Rc6 {[%clk 0:00:03]} 96. Ke4 {[%clk 0:00:10]}  Rd6 {[%clk 0:00:02]} 97. Ke5 {[%clk 0:00:10]}  Rxb6 {[%clk 0:00:03]} 98. Rd3 {[%clk 0:00:10]}  Rb5+ {[%clk 0:00:03]} 99. Kd6 {[%clk 0:00:10]}  Rb6+ {[%clk 0:00:03]} 100. Kd7 {[%clk 0:00:11]}  Rb4 {[%clk 0:00:03]} 101. Rd1 {[%clk 0:00:11]}  Rb2 {[%clk 0:00:03]} 102. Rd3 {[%clk 0:00:10]}  Kb6 {[%clk 0:00:04]} 103. Rd6+ {[%clk 0:00:11]}  Kb5 {[%clk 0:00:04]} 104. Kc7 {[%clk 0:00:10]}  Rc2+ {[%clk 0:00:04]} 105. Kb7 {[%clk 0:00:11]}  Ka5 {[%clk 0:00:03]} 106. Rb6 {[%clk 0:00:11]}  Ka4 {[%clk 0:00:02]} 107. Ka6 {[%clk 0:00:11]}  Rc4 {[%clk 0:00:02]} 108. Kb7 {[%clk 0:00:11]}  Rb4 {[%clk 0:00:02]} 109. Rxb4+ {[%clk 0:00:11]}  Kxb4 {[%clk 0:00:03]} 1/2-1/2


[Site "https://www.chess.com"]

[Event "Titled Tuesday Blitz February 21 Early 2023"]
[White "Shuvalov, Evgenij"]
[Black "Orujov, Elshad"]
[WhiteFideId "4187237"]
[BlackFideId "13403540"]
[WhiteElo "2038"]
[BlackElo "2304"]
[Result "0-1"]
[Round "05"]
[TimeControl "180+2"]
[Date "2023.02.21"]
[WhiteClock "0:01:07"]
[BlackClock "0:00:08"]

1. d4 {[%clk 0:03:00]}  Nf6 {[%clk 0:02:58]} 2. c4 {[%clk 0:03:00]}  e6 {[%clk 0:02:58]} 3. Nc3 {[%clk 0:03:00]}  d5 {[%clk 0:02:57]} 4. cxd5 {[%clk 0:02:58]}  exd5 {[%clk 0:02:58]} 5. Bg5 {[%clk 0:02:58]}  Be7 {[%clk 0:02:58]} 6. e3 {[%clk 0:02:58]}  O-O {[%clk 0:02:58]} 7. Bd3 {[%clk 0:02:58]}  h6 {[%clk 0:02:58]} 8. Bh4 {[%clk 0:02:58]}  c6 {[%clk 0:02:58]} 9. Nge2 {[%clk 0:02:57]}  Ne4 {[%clk 0:02:58]} 10. Bg3 {[%clk 0:02:54]}  Nxg3 {[%clk 0:02:55]} 11. hxg3 {[%clk 0:02:55]}  Nd7 {[%clk 0:02:56]} 12. Nf4 {[%clk 0:02:50]}  Nf6 {[%clk 0:02:55]} 13. Qc2 {[%clk 0:02:49]}  Bg4 {[%clk 0:02:48]} 14. f3 {[%clk 0:02:49]}  Bd7 {[%clk 0:02:45]} 15. g4 {[%clk 0:02:48]}  Ne8 {[%clk 0:02:22]} 16. O-O-O {[%clk 0:02:45]}  b5 {[%clk 0:02:18]} 17. Nce2 {[%clk 0:02:37]}  Nd6 {[%clk 0:02:16]} 18. Ng3 {[%clk 0:02:29]}  Nc4 {[%clk 0:02:14]} 19. Rde1 {[%clk 0:02:27]}  Bg5 {[%clk 0:02:10]} 20. Bxc4 {[%clk 0:02:14]}  bxc4 {[%clk 0:02:11]} 21. Nf5 {[%clk 0:02:06]}  Re8 {[%clk 0:01:34]} 22. Kb1 {[%clk 0:02:00]}  Rb8 {[%clk 0:01:31]} 23. Re2 {[%clk 0:01:51]}  Qb6 {[%clk 0:01:14]} 24. Nd6 {[%clk 0:01:42]}  Red8 {[%clk 0:01:03]} 25. Nh3 {[%clk 0:01:39]}  Be7 {[%clk 0:00:49]} 26. Nf5 {[%clk 0:01:37]}  Bxf5 {[%clk 0:00:49]} 27. gxf5 {[%clk 0:01:36]}  a5 {[%clk 0:00:40]} 28. Ka1 {[%clk 0:01:35]}  a4 {[%clk 0:00:37]} 29. a3 {[%clk 0:01:33]}  Qb3 {[%clk 0:00:34]} 30. Rc1 {[%clk 0:01:24]}  Qxc2 {[%clk 0:00:11]} 31. Rexc2 {[%clk 0:01:25]}  Rb3 {[%clk 0:00:12]} 32. Rc3 {[%clk 0:01:25]}  Rdb8 {[%clk 0:00:11]} 33. R1c2 {[%clk 0:01:24]}  c5 {[%clk 0:00:10]} 34. Nf4 {[%clk 0:01:19]}  cxd4 {[%clk 0:00:10]} 35. exd4 {[%clk 0:01:20]}  Bf6 {[%clk 0:00:10]} 36. Nxd5 {[%clk 0:01:17]}  Bxd4 {[%clk 0:00:10]} 37. Rxb3 {[%clk 0:01:15]}  cxb3 {[%clk 0:00:09]} 38. Rc4 {[%clk 0:01:12]}  Re8 {[%clk 0:00:09]} 39. Rc8 {[%clk 0:01:10]}  Rxc8 {[%clk 0:00:07]} 40. Ne7+ {[%clk 0:01:10]}  Kf8 {[%clk 0:00:07]} 41. Nxc8 {[%clk 0:01:11]}  Bc5 {[%clk 0:00:07]} 42. Kb1 {[%clk 0:01:08]}  Ke8 {[%clk 0:00:08]} 43. f6 {[%clk 0:01:07]}  gxf6 {[%clk 0:00:08]} 44. Kc1 {[%clk 0:01:06]}  Kd8 {[%clk 0:00:08]} 45. Kd2 {[%clk 0:01:07]}  Kxc8 {[%clk 0:00:08]} 46. Kd3 {[%clk 0:01:08]}  Kd7 {[%clk 0:00:09]} 47. g4 {[%clk 0:01:07]}  Bd6 {[%clk 0:00:08]} 0-1


[Site "https://www.chess.com"]

[Event "Titled Tuesday Blitz February 21 Early 2023"]
[White "Bambino Filho, Antonio Carlos"]
[Black "MunichMouse"]
[WhiteFideId "2113163"]
[WhiteElo "2144"]
[BlackElo "2296"]
[Result "0-1"]
[Round "05"]
[TimeControl "180+2"]
[Date "2023.02.21"]
[WhiteClock "0:00:59"]
[BlackClock "0:00:26"]

1. e4 {[%clk 0:02:59]}  c5 {[%clk 0:02:59]} 2. Nf3 {[%clk 0:02:59]}  d6 {[%clk 0:03:00]} 3. d4 {[%clk 0:02:59]}  cxd4 {[%clk 0:03:01]} 4. Nxd4 {[%clk 0:03:00]}  Nf6 {[%clk 0:03:02]} 5. Nc3 {[%clk 0:03:01]}  a6 {[%clk 0:03:02]} 6. Bc4 {[%clk 0:03:01]}  Qc7 {[%clk 0:03:02]} 7. Bb3 {[%clk 0:03:01]}  e6 {[%clk 0:03:03]} 8. Qe2 {[%clk 0:02:58]}  Nc6 {[%clk 0:03:03]} 9. Be3 {[%clk 0:02:58]}  Be7 {[%clk 0:03:02]} 10. f4 {[%clk 0:02:52]}  Na5 {[%clk 0:03:02]} 11. f5 {[%clk 0:02:46]}  Nxb3 {[%clk 0:03:01]} 12. axb3 {[%clk 0:02:47]}  O-O {[%clk 0:03:01]} 13. O-O {[%clk 0:02:42]}  Bd7 {[%clk 0:03:02]} 14. Qf3 {[%clk 0:02:36]}  b5 {[%clk 0:02:59]} 15. g4 {[%clk 0:02:31]}  b4 {[%clk 0:02:55]} 16. Na4 {[%clk 0:02:30]}  e5 {[%clk 0:02:52]} 17. Ne2 {[%clk 0:02:26]}  Bc6 {[%clk 0:02:52]} 18. Ng3 {[%clk 0:02:26]}  d5 {[%clk 0:02:50]} 19. g5 {[%clk 0:02:23]}  Nxe4 {[%clk 0:02:50]} 20. Nxe4 {[%clk 0:02:23]}  dxe4 {[%clk 0:02:50]} 21. Qg4 {[%clk 0:02:24]}  Bxa4 {[%clk 0:02:32]} 22. bxa4 {[%clk 0:02:15]}  Bc5 {[%clk 0:02:31]} 23. Rae1 {[%clk 0:02:06]}  Rad8 {[%clk 0:02:07]} 24. f6 {[%clk 0:02:03]}  Rd2 {[%clk 0:02:06]} 25. fxg7 {[%clk 0:01:54]}  Rfd8 {[%clk 0:01:56]} 26. Qxe4 {[%clk 0:01:48]}  Rxc2 {[%clk 0:01:38]} 27. Rf2 {[%clk 0:01:20]}  Rxf2 {[%clk 0:01:14]} 28. Kxf2 {[%clk 0:01:21]}  Rd2+ {[%clk 0:01:06]} 29. Kg3 {[%clk 0:01:16]}  Rxb2 {[%clk 0:00:55]} 30. Rc1 {[%clk 0:01:08]}  Rb3 {[%clk 0:00:48]} 31. Rxc5 {[%clk 0:01:04]}  Qxc5 {[%clk 0:00:47]} 32. Kf2 {[%clk 0:00:59]}  Qxe3+ {[%clk 0:00:25]} 33. Qxe3 {[%clk 0:00:58]}  Rxe3 {[%clk 0:00:25]} 34. Kxe3 {[%clk 0:00:59]}  a5 {[%clk 0:00:26]} 0-1


[Site "https://www.chess.com"]

[Event "Titled Tuesday Blitz February 21 Early 2023"]
[White "Jenkins, Drake"]
[Black "Heinemann, Josefine"]
[WhiteFideId "2022397"]
[BlackFideId "12900460"]
[WhiteElo "2130"]
[BlackElo "2289"]
[Result "1-0"]
[Round "05"]
[TimeControl "180+2"]
[Date "2023.02.21"]
[WhiteClock "0:00:07"]
[BlackClock "0:00:01"]

1. Nf3 {[%clk 0:02:51]}  d5 {[%clk 0:02:58]} 2. c4 {[%clk 0:02:51]}  e6 {[%clk 0:02:57]} 3. g3 {[%clk 0:02:51]}  Nf6 {[%clk 0:02:55]} 4. Bg2 {[%clk 0:02:51]}  d4 {[%clk 0:02:50]} 5. O-O {[%clk 0:02:49]}  c5 {[%clk 0:02:48]} 6. b4 {[%clk 0:02:48]}  cxb4 {[%clk 0:02:48]} 7. a3 {[%clk 0:02:48]}  Nc6 {[%clk 0:02:48]} 8. d3 {[%clk 0:02:47]}  Be7 {[%clk 0:02:33]} 9. axb4 {[%clk 0:02:46]}  Bxb4 {[%clk 0:02:25]} 10. Ba3 {[%clk 0:02:45]}  Bxa3 {[%clk 0:02:24]} 11. Nxa3 {[%clk 0:02:44]}  O-O {[%clk 0:02:25]} 12. Qc2 {[%clk 0:02:44]}  e5 {[%clk 0:02:25]} 13. Rfb1 {[%clk 0:02:44]}  Qe7 {[%clk 0:02:21]} 14. c5 {[%clk 0:02:42]}  Nd5 {[%clk 0:01:40]} 15. Nb5 {[%clk 0:02:36]}  a6 {[%clk 0:01:37]} 16. Nd6 {[%clk 0:02:34]}  Nc3 {[%clk 0:01:33]} 17. Rb2 {[%clk 0:02:22]}  Ra7 {[%clk 0:01:10]} 18. e3 {[%clk 0:02:13]}  Bg4 {[%clk 0:00:56]} 19. Ne1 {[%clk 0:00:55]}  Rd8 {[%clk 0:00:32]} 20. h3 {[%clk 0:00:42]}  Bc8 {[%clk 0:00:28]} 21. exd4 {[%clk 0:00:36]}  exd4 {[%clk 0:00:27]} 22. Nf3 {[%clk 0:00:36]}  Rxd6 {[%clk 0:00:26]} 23. cxd6 {[%clk 0:00:34]}  Qxd6 {[%clk 0:00:27]} 24. Re1 {[%clk 0:00:24]}  Be6 {[%clk 0:00:26]} 25. Ng5 {[%clk 0:00:20]}  h6 {[%clk 0:00:21]} 26. Ne4 {[%clk 0:00:19]}  Nxe4 {[%clk 0:00:19]} 27. Rxe4 {[%clk 0:00:19]}  b5 {[%clk 0:00:14]} 28. Rxe6 {[%clk 0:00:16]}  Qxe6 {[%clk 0:00:14]} 29. Qxc6 {[%clk 0:00:17]}  Qe1+ {[%clk 0:00:14]} 30. Kh2 {[%clk 0:00:17]}  Re7 {[%clk 0:00:12]} 31. Qxa6 {[%clk 0:00:14]}  b4 {[%clk 0:00:12]} 32. Qd6 {[%clk 0:00:10]}  Re6 {[%clk 0:00:06]} 33. Qxd4 {[%clk 0:00:09]}  b3 {[%clk 0:00:03]} 34. Rxb3 {[%clk 0:00:07]}  Rf6 {[%clk 0:00:01]} 35. Rb2 {[%clk 0:00:07]} 1-0


[Site "https://www.chess.com"]

[Event "Titled Tuesday Blitz February 21 Early 2023"]
[White "Thiel, Thomas"]
[Black "Mushini Ajay"]
[WhiteFideId "4615964"]
[BlackFideId "35066188"]
[WhiteElo "2234"]
[BlackElo "2310"]
[Result "1-0"]
[Round "05"]
[TimeControl "180+2"]
[Date "2023.02.21"]
[WhiteClock "0:00:18"]
[BlackClock "0:00:16"]

1. e4 {[%clk 0:03:00]}  c5 {[%clk 0:02:59]} 2. Nc3 {[%clk 0:02:58]}  e6 {[%clk 0:02:59]} 3. Nge2 {[%clk 0:02:57]}  a6 {[%clk 0:02:59]} 4. g3 {[%clk 0:02:57]}  b5 {[%clk 0:02:58]} 5. Bg2 {[%clk 0:02:56]}  Bb7 {[%clk 0:02:59]} 6. d4 {[%clk 0:02:56]}  cxd4 {[%clk 0:02:58]} 7. Nxd4 {[%clk 0:02:56]}  Nc6 {[%clk 0:02:57]} 8. O-O {[%clk 0:02:53]}  Bc5 {[%clk 0:02:56]} 9. Nxc6 {[%clk 0:02:43]}  Bxc6 {[%clk 0:02:57]} 10. Re1 {[%clk 0:02:38]}  h5 {[%clk 0:02:56]} 11. a4 {[%clk 0:02:33]}  h4 {[%clk 0:02:53]} 12. axb5 {[%clk 0:02:31]}  hxg3 {[%clk 0:02:52]} 13. hxg3 {[%clk 0:02:28]}  axb5 {[%clk 0:02:49]} 14. Rxa8 {[%clk 0:02:25]}  Qxa8 {[%clk 0:02:50]} 15. Qg4 {[%clk 0:02:19]}  g6 {[%clk 0:02:25]} 16. Nd5 {[%clk 0:02:05]}  Bxd5 {[%clk 0:01:56]} 17. exd5 {[%clk 0:02:04]}  Qa7 {[%clk 0:01:51]} 18. Be3 {[%clk 0:01:52]}  Nf6 {[%clk 0:01:45]} 19. Bxc5 {[%clk 0:01:37]}  Qxc5 {[%clk 0:01:43]} 20. Qg5 {[%clk 0:01:32]}  Nh5 {[%clk 0:01:25]} 21. c3 {[%clk 0:01:19]}  b4 {[%clk 0:01:19]} 22. cxb4 {[%clk 0:01:12]}  Qxb4 {[%clk 0:01:20]} 23. Qe5 {[%clk 0:01:08]}  O-O {[%clk 0:01:17]} 24. Bf3 {[%clk 0:00:59]}  Ng7 {[%clk 0:01:08]} 25. dxe6 {[%clk 0:00:49]}  dxe6 {[%clk 0:01:03]} 26. Re4 {[%clk 0:00:41]}  Qb3 {[%clk 0:00:58]} 27. Kg2 {[%clk 0:00:41]}  Rb8 {[%clk 0:00:55]} 28. Rd4 {[%clk 0:00:33]}  Nf5 {[%clk 0:00:49]} 29. Rd2 {[%clk 0:00:33]}  Rc8 {[%clk 0:00:26]} 30. Be4 {[%clk 0:00:31]}  Ne7 {[%clk 0:00:23]} 31. Rd3 {[%clk 0:00:25]}  Qb8 {[%clk 0:00:19]} 32. Qf6 {[%clk 0:00:22]}  Qc7 {[%clk 0:00:18]} 33. g4 {[%clk 0:00:22]}  Nd5 {[%clk 0:00:15]} 34. Bxd5 {[%clk 0:00:20]}  exd5 {[%clk 0:00:16]} 35. Rh3 {[%clk 0:00:18]} 1-0


[Site "https://www.chess.com"]

[Event "Titled Tuesday Blitz February 21 Early 2023"]
[White "Zaksaite, Salomeja"]
[Black "Silvestre, Christian"]
[WhiteFideId "12801496"]
[BlackFideId "30956269"]
[WhiteElo "2283"]
[BlackElo "1942"]
[Result "1-0"]
[Round "05"]
[TimeControl "180+2"]
[Date "2023.02.21"]
[WhiteClock "0:02:11"]
[BlackClock "0:01:41"]

1. e4 {[%clk 0:02:58]}  c6 {[%clk 0:02:42]} 2. d4 {[%clk 0:02:57]}  d5 {[%clk 0:02:42]} 3. exd5 {[%clk 0:02:57]}  cxd5 {[%clk 0:02:42]} 4. Bd3 {[%clk 0:02:57]}  Nc6 {[%clk 0:02:38]} 5. c3 {[%clk 0:02:57]}  Qc7 {[%clk 0:02:35]} 6. h3 {[%clk 0:02:55]}  g6 {[%clk 0:02:30]} 7. Nf3 {[%clk 0:02:52]}  Bf5 {[%clk 0:02:29]} 8. Be2 {[%clk 0:02:51]}  Nf6 {[%clk 0:02:26]} 9. O-O {[%clk 0:02:51]}  Bg7 {[%clk 0:02:23]} 10. Nbd2 {[%clk 0:02:49]}  O-O {[%clk 0:02:17]} 11. Re1 {[%clk 0:02:48]}  Ne4 {[%clk 0:02:15]} 12. Nf1 {[%clk 0:02:46]}  Bd7 {[%clk 0:02:10]} 13. Ne3 {[%clk 0:02:44]}  Rfe8 {[%clk 0:02:05]} 14. Bd3 {[%clk 0:02:42]}  e5 {[%clk 0:02:04]} 15. Nxd5 {[%clk 0:02:41]}  Qd6 {[%clk 0:02:00]} 16. Bxe4 {[%clk 0:02:40]}  exd4 {[%clk 0:01:59]} 17. Bf4 {[%clk 0:02:40]}  Qc5 {[%clk 0:01:53]} 18. Nc7 {[%clk 0:02:37]}  dxc3 {[%clk 0:01:50]} 19. Nxa8 {[%clk 0:02:26]}  cxb2 {[%clk 0:01:49]} 20. Rb1 {[%clk 0:02:26]}  Be6 {[%clk 0:01:42]} 21. Nc7 {[%clk 0:02:19]}  Rd8 {[%clk 0:01:41]} 22. Nxe6 {[%clk 0:02:16]}  fxe6 {[%clk 0:01:41]} 23. Qb3 {[%clk 0:02:11]} 1-0


[Site "https://www.chess.com"]